[Event "FIDE Zonal 4-2 Open 2023"]
[Site "Dimbroko"]
[Date "2023.03.31"]
[Round "9.9"]
[White "Foday W. Kondoh"]
[Black "KONAN KOUASSI AUGUSTIN"]
[Result "1-0"]
[ECO "A05"]
[WhiteElo "1727"]
[BlackElo "1775"]
[Annotator "NA RC COMBH"]
[PlyCount "101"]
[EventDate "2023.03.25"]
[EventType "swiss"]
[EventCountry "IVO"]
[SourceTitle "playchess.com"]
[Source "ChessBase"]
[SourceQuality "1"]
[TimeControl "40/5400+30:1800+30"]

1. Nf3 {[%emt 0:00:57]} e6 {[%emt 0:05:13]} 2. b3 {[%emt 0:00:24]} c5 {[%emt 0:01:22]} 3. Bb2 {[%emt 0:00:30]} Nc6 {[%emt 0:00:10]} 4. e3 {[%emt 0:00:48]} Nf6 {[%emt 0:00:26]} 5. Nc3 {[%emt 0:00:23]} b6 {[%emt 0:00:24]} 6. d4 {[%emt 0:00:26]} cxd4 {[%emt 0:02:39]} 7. Nxd4 {[%emt 0:00:22]} Nb4 {[%emt 0:01:02]} 8. Bc4 {[%emt 0:07:06]} Bb7 {[%emt 0:00:34]} 9. O-O {[%emt 0:01:31]} Be7 {[%emt 0:00:22]} 10. Qe2 {[%emt 0:01:32]} O-O {[%emt 0:00:18]} 11. a3 {[%emt 0:00:24]} Nc6 {[%emt 0:02:50]} 12. Rad1 {[%emt 0:00:45]} Qc8 {[%emt 0:03:01]} 13. Nf3 {[%emt 0:03:30]} h6 {[%emt 0:00:51]} 14. Rd2 {[%emt 0:00:13]} a6 {[%emt 0:00:24]} 15. b4 {[%emt 0:00:56]} b5 {[%emt 0:00:13]} 16. Ba2 {[%emt 0:00:32]} Qc7 {[%emt 0:01:24]} 17. h3 {[%emt 0:00:22]} Ne5 {[%emt 0:00:46]} 18. Nxe5 {[%emt 0:10:29]} Qxe5 {[%emt 0:13:01]} 19. f3 {[%emt 0:02:04]} d5 {[%emt 0:08:01]} 20. Nd1 {[%emt 0:18:27]} Qg3 {[%emt 0:00:46]} 21. Qf2 {[%emt 0:04:22]} Qg6 {[%emt 0:03:05]} 22. Be5 {[%emt 0:00:47]} Nh7 {[%emt 0:00:34]} 23. Bb1 {[%emt 0:00:33]} f5 {[%emt 0:00:36]} 24. Nb2 {[%emt 0:01:26]} Ng5 {[%emt 0:00:13]} 25. Qg3 {[%emt 0:01:22]} Qf7 {[%emt 0:04:20]} 26. Nd3 {[%emt 0:04:04]} Bd8 {[%emt 0:01:47]} 27. h4 {[%emt 0:02:26]} Nh7 {[%emt 0:00:09]} 28. Nc5 {[%emt 0:01:38]} Nf6 {[%emt 0:04:26]} 29. Bd6 {[%emt 0:03:45]} Nh5 {[%emt 0:01:24]} 30. Qh2 {[%emt 0:03:22]} Re8 {[%emt 0:00:08]} 31. g4 {[%emt 0:00:52]} Nf6 {[%emt 0:01:41]} 32. g5 {[%emt 0:03:04]} Nh5 {[%emt 0:02:27]} 33. gxh6 {[%emt 0:03:28]} g6 {[%emt 0:02:07]} 34. Rg2 {[%emt 0:00:39]} Bc6 {[%emt 0:00:38]} 35. Nd3 {[%emt 0:01:20]} Bf6 {[%emt 0:03:10]} 36. Ne5 {[%emt 0:02:12]} Bxe5 {[%emt 0:00:26]} 37. Bxe5 {[%emt 0:00:11]} Kh7 {[%emt 0:00:07]} 38. c3 {[%emt 0:02:27]} Kxh6 {[%emt 0:00:20]} 39. Rg5 {[%emt 0:01:07]} Rg8 {[%emt 0:00:52]} 40. Kg2 {[%emt 0:04:53]} a5 {[%emt 0:00:15]} 41. Kh3 {[%emt 0:30:14]} axb4 {[%emt 0:30:12]} 42. axb4 {[%emt 0:00:16]} Qa7 {[%emt 0:02:16]} 43. Bd4 {[%emt 0:02:59]} Qb8 {[%emt 0:00:57]} 44. Be5 {[%emt 0:07:15]} Qb7 {[%emt 0:00:34]} 45. Rfg1 {[%emt 0:01:05]} Be8 {[%emt 0:00:02]} 46. Rxh5+ {[%emt 0:02:34]} Kxh5 {[%emt 0:01:27]} 47. Qf4 {[%emt 0:00:31]} Qe7 {[%emt 0:00:52]} 48. Rg5+ {[%emt 0:00:26]} Kh6 {[%emt 0:00:44]} 49. Rxf5+ {[%emt 0:00:37]} g5 {[%emt 0:35:24]} 50. Rf6+ {[%emt 0:03:54]} Bg6 {[%emt 0:00:30]} 51. Qxg5+ {[%emt 0:00:30]} 1-0

[Event "FIDE Zonal 4-2 Open 2023"]
[Site "Dimbroko"]
[Date "2023.03.31"]
[Round "9.11"]
[White "Semeko, Lumen Paco"]
[Black "Joel O. Ebiekuta"]
[Result "0-1"]
[ECO "A06"]
[WhiteElo "1483"]
[BlackElo "1855"]
[Annotator "NA RC COMBH"]
[PlyCount "96"]
[EventDate "2023.03.25"]
[EventType "swiss"]
[EventCountry "IVO"]
[SourceTitle "playchess.com"]
[Source "ChessBase"]
[SourceQuality "1"]
[TimeControl "40/5400+30:1800+30"]

1. b3 {[%emt 0:00:02]} Nf6 {[%emt 0:00:04]} 2. Bb2 {[%emt 0:00:04]} d5 {[%emt 0:00:26]} 3. Nf3 {[%emt 0:00:04]} c5 {[%emt 0:00:06]} 4. e3 {[%emt 0:00:08]} Nc6 {[%emt 0:00:25]} 5. Bb5 {[%emt 0:00:14]} g6 {[%emt 0:03:29]} 6. h3 {[%emt 0:02:20]} ({White should try} 6. Nc3 $14) 6... Bg7 {[%emt 0:00:16]} 7. c4 {[%emt 0:00:42]} dxc4 {[%emt 0:00:34]} 8. Bxc6+ {[%emt 0:00:43]} bxc6 {[%emt 0:00:04]} 9. bxc4 {[%emt 0:00:27]} Qd3 {[%emt 0:00:30]} 10. Qb3 {[%emt 0:00:56]} Qd6 {[%emt 0:02:16]} (10... Bf5 $11) 11. Nc3 {[%emt 0:00:41]} ({White should try} 11. Be5 $16 Qd8 12. d3) 11... O-O {[%emt 0:00:37]} 12. O-O {[%emt 0:00:03]} (12. Na4 $5 {[%cal Rb2e5]}) 12... Rd8 {[%emt 0:02:19]} (12... Rb8 $11 13. Qa3 Nh5) 13. Na4 {[%emt 0:00:46]} Rb8 {[%emt 0:04:05] [#]} 14. Be5 {[%emt 0:07:12]} Rxb3 {[%emt 0:03:28]} 15. Bxd6 {[%emt 0:00:04]} Ra3 {[%emt 0:00:36]} 16. Bxe7 {[%emt 0:01:50]} Re8 {[%emt 0:00:14]} 17. Bxf6 {[%emt 0:00:14]} Bxf6 {[%emt 0:00:46]} 18. Nc3 {[%emt 0:00:10]} Bf5 {[%emt 0:00:52]} 19. Rac1 {[%emt 0:09:28]} Bd3 {[%emt 0:00:52]} 20. Rfd1 {[%emt 0:02:05]} Rb8 {[%emt 0:02:20]} 21. Ne1 $1 {[%emt 0:02:13]} Bf5 {[%emt 0:00:44]} 22. d4 $2 {[%emt 0:01:03]} (22. g4 $11 Be6 23. Ne4) 22... cxd4 {[%emt 0:03:49]} 23. exd4 {[%emt 0:00:28]} Bg5 {[%emt 0:00:15]} 24. d5 {[%emt 0:06:14]} Bxc1 {[%emt 0:01:06]} 25. Rxc1 {[%emt 0:00:25]} cxd5 {[%emt 0:00:01]} 26. Nxd5 {[%emt 0:01:49]} Be6 {[%emt 0:00:27]} 27. Nf4 {[%emt 0:11:29]} Rxa2 {[%emt 0:01:02]} 28. Nxe6 {[%emt 0:00:45]} fxe6 {[%emt 0:00:03]} 29. c5 {[%emt 0:00:16]} Rc8 {[%emt 0:00:11]} 30. Nd3 {[%emt 0:00:21]} Kf8 {[%emt 0:00:56]} 31. c6 {[%emt 0:00:43]} Ke7 {[%emt 0:00:17]} 32. Ne5 {[%emt 0:00:19]} a5 {[%emt 0:01:44]} 33. Rb1 {[%emt 0:01:58]} Rc7 {[%emt 0:00:07]} 34. Rb8 {[%emt 0:03:32]} g5 {[%emt 0:01:35]} 35. g3 {[%emt 0:04:37]} a4 {[%emt 0:00:16]} 36. f4 {[%emt 0:00:34]} gxf4 {[%emt 0:00:02]} 37. gxf4 {[%emt 0:00:11]} Kd6 {[%emt 0:00:48]} 38. Rd8+ {[%emt 0:01:30]} Kc5 {[%emt 0:00:16]} 39. Nd3+ {[%emt 0:02:56]} Kb6 {[%emt 0:00:42]} 40. Ne5 {[%emt 0:02:46]} Rc2 {[%emt 0:02:57]} 41. Rb8+ {[%emt 0:32:37]} Ka6 {[%emt 0:31:16]} 42. Nd3 {[%emt 0:05:24]} R2xc6 {[%emt 0:04:08]} 43. Nb4+ {[%emt 0:00:50]} Ka5 {[%emt 0:00:07]} 44. Nxc6+ {[%emt 0:00:48]} Rxc6 {[%emt 0:00:16]} 45. Rh8 {[%emt 0:00:59]} a3 {[%emt 0:00:04]} 46. Rd8 {[%emt 0:03:15]} a2 {[%emt 0:00:11]} 47. Rd1 {[%emt 0:00:10]} Rc2 {[%emt 0:00:02]} 48. h4 {[%emt 0:00:18]} Rb2 {[%emt 0:00:18]} 0-1